[Event "15th Tashkent Open Agzamov 2022"]
[Site "Tashkent"]
[Date "2022.05.07"]
[Round "6.7"]
[White "Muradli, Mahammad"]
[Black "Madaminov, Mukhiddin"]
[Result "0-1"]
[ECO "A13"]
[WhiteElo "2539"]
[BlackElo "2308"]
[Annotator "TA"]
[PlyCount "134"]
[EventDate "2022.05.05"]
[EventType "swiss"]
[EventCountry "UZB"]
[SourceTitle "playchess.com"]
[Source "ChessBase"]
[SourceQuality "1"]
[TimeControl "5400+30"]

{[%evp 14,134,34,23,64,67,58,60,56,62,53,18,65,52,28,45,50,24,27,28,17,25,25,8,8,8,27,31,47,10,10,8,12,0,0,0,0,-12,-5,-16,-22,-28,-4,-10,-4,-8,0,-8,-8,-4,-7,-24,0,0,0,-36,-16,-14,0,0,0,-106,-79,-52,-63,-150,-140,-294,-275,-266,-257,-194,-123,-1076,-1061,-1090,-1083,-1090,-1083,-1068,-1068,-1061,-1061,-1051,-1051,-1043,-1036,-1031,-1036,-1021,-1021,-1014,-919,-1014,-992,-872,-843,-710,-687,-616,-573,-404,-212,-212,-213,-206,-206,-630,-630,-766,-728,-29972,-29973,-29972,-29971,-29968,-29971,-29974,-29975,-29983,-29984,-29983,-29981]} 1. Nf3 {[%emt 0:09:29]} Nf6 {[%emt 0:00:35]} 2. c4 {[%emt 0:02:17]} e6 {[%emt 0:01:25]} 3. g3 {[%emt 0:00:06]} d5 {[%emt 0:04:45]} 4. Bg2 {[%emt 0:00:59]} dxc4 {[%emt 0:01:30]} 5. Qa4+ {[%emt 0:00:05]} Nbd7 {[%emt 0:08:11]} 6. Qxc4 {[%emt 0:01:43]} a6 {[%emt 0:00:24]} 7. Qc2 {[%emt 0:00:05]} c5 {[%emt 0:02:30]} 8. Nc3 {[%emt 0:00:45]} Bd6 {[%emt 0:02:58] A13: English Opening: 1...e6.} 9. d4 {[%emt 0:07:25]} O-O {[%emt 0:11:08]} 10. O-O {[%emt 0:02:34]} Qc7 {[%emt 0:05:39] White is slightly better.} 11. dxc5 {[%emt 0:07:02]} Nxc5 {[%emt 0:15:10]} 12. Be3 {[%emt 0:04:14]} Nce4 {[%emt 0:05:05] [#]} 13. Rfc1 $146 {[%emt 0:05:05][%cal Bf1c1,Bc1c3,Bc3d3][%mdl 32]} ({Predecessor:} 13. Rfd1 Nxc3 14. Qxc3 Qxc3 15. bxc3 Bc7 16. Ng5 Rd8 17. Bf4 Ba5 18. c4 Re8 19. Ne4 Nxe4 20. Bxe4 {1-0 (47) Erigaisi,A (2597)-Jogstad,M (2334) Braganca 2021}) 13... Nxc3 {[%emt 0:01:55]} 14. Qxc3 {[%emt 0:00:05]} Qxc3 {[%emt 0:02:44]} 15. Rxc3 {[%emt 0:00:02]} Nd5 {[%emt 0:06:06]} 16. Rd3 {[%emt 0:00:06]} Bd7 {[%emt 0:01:25]} 17. Nd4 {[%emt 0:00:37]} Be5 {[%emt 0:08:10]} 18. Bxd5 {[%emt 0:06:39]} exd5 {[%emt 0:00:06]} 19. Rd2 {[%emt 0:00:25]} Rfc8 {[%emt 0:05:00]} 20. Nf3 {[%emt 0:02:25][%csl LRd5,LRe5]} Bf6 {[%emt 0:00:59]} 21. Bd4 {[%emt 0:00:01]} Be7 {[%emt 0:00:30]} 22. Bc3 {[%emt 0:00:19]} Be6 {[%emt 0:00:12]} 23. Ne1 {[%emt 0:02:15]} b5 {[%emt 0:02:58]} 24. a3 {[%emt 0:03:31]} a5 {[%emt 0:01:00]} 25. Nd3 {[%emt 0:02:32] Against b4} g5 {[%emt 0:02:40]} 26. Bd4 {[%emt 0:05:12]} f6 {[%emt 0:01:12]} 27. b3 {[%emt 0:02:16]} Ra6 {[%emt 0:04:05]} 28. f3 {[%emt 0:00:45]} Bf5 {[%emt 0:00:57]} 29. Kf2 {[%emt 0:05:18]} Kf7 {[%emt 0:01:42]} 30. g4 {[%emt 0:03:01]} Bg6 {[%emt 0:00:21]} 31. a4 {[%emt 0:00:18]} b4 {[%emt 0:00:25]} 32. h4 {[%emt 0:04:18]} h6 {[%emt 0:00:35]} (32... gxh4 $5 {[%cal Re7d6]} 33. Rh1 f5 34. Ne5+ Ke8 $15) 33. h5 {[%emt 0:01:42]} Bh7 {[%emt 0:00:41]} 34. Rad1 {[%emt 0:00:01]} Rac6 {[%emt 0:01:59]} 35. Ne1 {[%emt 0:00:26]} Rc1 {[%emt 0:01:52]} 36. e3 {[%emt 0:04:44]} Ke6 {[%emt 0:00:42]} 37. Bb2 {[%emt 0:01:42]} (37. Rxc1 $11 Rxc1 38. Ke2) 37... Rxd1 $17 {[%emt 0:00:21] Black is more active.} 38. Rxd1 {[%emt 0:00:01]} Bd6 {[%emt 0:00:29]} 39. Ke2 {[%emt 0:03:10]} (39. Bd4 $15) 39... Be5 $1 {[%emt 0:00:30]} 40. Rc1 $2 {[%emt 0:00:01]} (40. Bd4 $17) 40... Rxc1 $19 {[%emt 0:00:12]} 41. Bxc1 {[%emt 0:00:02][%mdl 4096] Endgame KBB-KBN} Bc3 {[%emt 0:00:29]} 42. Nd3 {[%emt 0:02:09] [#]} Kd6 {[%emt 0:00:05]} ({Black should try} 42... f5 $1 $19 {Strongly threatening ...fxg4.} 43. gxf5+ (43. Nc5+ $2 Kd6 $19) 43... Bxf5) 43. Bd2 $2 {[%emt 0:03:14][%mdl 8192]} (43. f4 $17) 43... Bxd2 {[%emt 0:00:38]} 44. Kxd2 {[%emt 0:00:02]} Bxd3 {[%emt 0:00:19]} 45. Kxd3 {[%emt 0:00:02] KP-KP} Ke5 {[%emt 0:00:06]} 46. Ke2 {[%emt 0:02:23] [#]} d4 $1 {[%emt 0:00:47]} 47. exd4+ {[%emt 0:00:06]} Kxd4 {[%emt 0:00:03]} 48. Kd2 {[%emt 0:00:05]} Ke5 {[%emt 0:00:26]} 49. Kd3 {[%emt 0:00:04]} Kf4 {[%emt 0:00:19]} 50. Kc4 {[%emt 0:00:05]} Kxf3 {[%emt 0:00:05]} 51. Kb5 {[%emt 0:00:03]} Kxg4 {[%emt 0:00:21]} 52. Kxa5 {[%emt 0:00:01]} f5 {[%emt 0:00:14]} 53. Kxb4 {[%emt 0:00:05] K3P-K3P} f4 {[%emt 0:00:03]} 54. a5 {[%emt 0:00:02]} f3 {[%emt 0:00:06]} 55. a6 {[%emt 0:00:04]} f2 {[%emt 0:00:06]} 56. a7 {[%emt 0:00:04]} f1=Q {[%emt 0:00:06]} 57. a8=Q {[%emt 0:00:05] Prevents Qa6.} Kxh5 {[%emt 0:00:47] KQ-KQ} (57... Kh4 $142 58. Qd8 Kxh5) 58. Qe8+ {[%emt 0:00:44]} Kh4 {[%emt 0:01:46] White must now prevent ...g4.} 59. Ka5 {[%emt 0:01:10]} Qf5+ {[%emt 0:00:55]} 60. Kb6 $2 {[%emt 0:01:31]} (60. Ka4) 60... g4 {[%emt 0:00:21][%cal Bg5g4,Bg4g3,Bg3g2][%mdl 32]} 61. b4 {[%emt 0:01:34]} g3 {[%emt 0:00:29] ( -> ...g2)} 62. b5 {[%emt 0:00:06]} g2 {[%emt 0:00:49] Black mates.} 63. Qe1+ {[%emt 0:00:05]} Kh3 {[%emt 0:01:53]} 64. Qe3+ {[%emt 0:00:22]} Kg4 {[%emt 0:00:07]} 65. Ka5 {[%emt 0:01:29]} h5 {[%emt 0:01:00]} 66. Ka6 {[%emt 0:00:51]} Qf6+ {[%emt 0:00:10]} 67. b6 {[%emt 0:00:29]} Qf1+ {[%emt 0:00:01] Weighted Error Value: White=0.34/Black=0.10 (very precise)} 0-1

[Event "15th Tashkent Open Agzamov 2022"]
[Site "Tashkent"]
[Date "2022.05.07"]
[Round "6.8"]
[White "Assaubayeva, Bibisara"]
[Black "Abdurakhmonov, Mukhammadali"]
[Result "1/2-1/2"]
[ECO "D24"]
[WhiteElo "2439"]
[BlackElo "2308"]
[Annotator "TA"]
[PlyCount "83"]
[EventDate "2022.05.05"]
[EventType "swiss"]
[EventCountry "UZB"]
[SourceTitle "playchess.com"]
[Source "ChessBase"]
[SourceQuality "1"]
[TimeControl "5400+30"]

{[%evp 9,83,17,47,45,45,47,45,41,53,51,52,54,60,33,18,20,31,25,183,156,153,104,121,123,129,134,134,132,134,138,146,168,160,158,142,125,157,152,156,145,193,48,45,31,54,63,48,47,77,0,92,102,82,50,38,44,92,80,81,93,72,40,79,81,81,72,75,61,64,27,43,33,78,0,0,0]} 1. d4 {[%emt 0:00:33]} Nf6 {[%emt 0:01:29]} 2. c4 {[%emt 0:00:12]} e6 {[%emt 0:00:17]} 3. Nf3 {[%emt 0:00:24]} d5 {[%emt 0:00:07]} 4. Nc3 {[%emt 0:00:06]} dxc4 {[%emt 0:00:57]} 5. e4 {[%emt 0:00:06][%cal Be2e4,Be4e5][%mdl 32]} b5 {[%emt 0:00:12]} 6. e5 {[%emt 0:00:23] D24: Queen's Gambit Accepted: 3 Nf3 Nf6 4 Nc3.} Nd5 {[%emt 0:00:07]} 7. Nxb5 {[%emt 0:00:03]} Nb6 {[%emt 0:00:06]} 8. Be2 {[%emt 0:00:34] White is slightly better.} Nc6 $1 {[%emt 0:01:05] 8...Nc6 is better than 8...Be7.} 9. Nc3 {[%emt 0:03:51]} Be7 {[%emt 0:03:11]} 10. Be3 {[%emt 0:00:09]} Ba6 {[%emt 0:06:01]} 11. a3 {[%emt 0:04:04]} Bb7 {[%emt 0:04:33] [#]} 12. O-O $146 {[%emt 0:00:45]} ({Predecessor:} 12. Qc2 Na5 13. Rd1 Rb8 14. h4 h6 15. Rh3 Qd7 16. Rg3 g6 17. h5 g5 18. Nd2 {1-0 (42) Makarian,R (2444)-Nesterov,A (2498) Moscow 2020}) 12... Qd7 {[%emt 0:09:23]} 13. Qc2 {[%emt 0:02:53]} g5 $2 {[%emt 0:05:21]} (13... Na5 $11 {and Black has nothing to worry.}) 14. Rfd1 {[%emt 0:04:27] Black must now prevent d5.} O-O-O {[%emt 0:01:11]} 15. Ne4 {[%emt 0:11:21]} ({Weaker is} 15. Bxg5 Bxg5 16. Nxg5 Nxd4 $17) ({White should try} 15. Rac1) 15... g4 $16 {[%emt 0:10:56]} 16. Ne1 {[%emt 0:03:23] White is more active.} Rhg8 {[%emt 0:04:57]} 17. Bxc4 {[%emt 0:07:56]} Nxc4 {[%emt 0:06:20]} 18. Qxc4 {[%emt 0:00:01]} Na5 {[%emt 0:02:10]} 19. Qc3 {[%emt 0:04:14] d5 is the strong threat.} Qb5 {[%emt 0:10:50] [#]} 20. Rac1 $1 {[%emt 0:06:14][%csl Gc1][%cal Rc3c7] The board is on fire.} Rd7 {[%emt 0:00:24]} 21. Nd2 {[%emt 0:11:29]} Nc6 {[%emt 0:00:50]} 22. b4 {[%emt 0:05:10]} Rgd8 {[%emt 0:09:22]} 23. Nb3 {[%emt 0:02:21] Prevents a5.} Qd5 {[%emt 0:02:22]} 24. Rd2 {[%emt 0:03:00]} a6 {[%emt 0:06:16]} (24... h5 $16 25. Qc4 a5) 25. Na5 {[%emt 0:09:18]} (25. Qb2 $18) 25... Nxa5 $14 {[%emt 0:01:19]} 26. bxa5 {[%emt 0:00:01]} Kb8 {[%emt 0:03:29]} 27. Rb2 {[%emt 0:03:07][%cal Bd2b2,Bb2b3,Bb3c3][%mdl 32] And now Rcb1 would win.} Ka8 {[%emt 0:00:05]} 28. Rcb1 {[%emt 0:01:20]} Bc6 {[%emt 0:00:06]} 29. Qd3 {[%emt 0:02:59]} (29. f3 $16) 29... Ka7 {[%emt 0:02:00]} (29... Bb5 $11 {remains equal.} 30. Rxb5 axb5) 30. Rb3 $16 {[%emt 0:06:33]} h5 {[%emt 0:01:00]} 31. Rc3 {[%emt 0:00:43]} Bb7 {[%emt 0:01:16]} ({Not} 31... Bb5 32. Qc2 c5 33. dxc5 $16) 32. Qc2 {[%emt 0:01:54]} Rc8 {[%emt 0:00:40]} (32... h4 $14) 33. Rcb3 {[%emt 0:01:24]} Ba8 {[%emt 0:02:07]} 34. Qb2 {[%emt 0:00:35]} Rdd8 {[%emt 0:01:21]} 35. Bd2 {[%emt 0:01:28]} (35. f3 $5 gxf3 36. Rc3 $16 (36. Nxf3 Rg8 $16)) 35... Bc6 {[%emt 0:02:25]} 36. Bb4 {[%emt 0:00:41]} Bxb4 {[%emt 0:00:53]} 37. Rxb4 {[%emt 0:00:01]} h4 {[%emt 0:00:48]} 38. Rc1 {[%emt 0:02:10]} Rb8 {[%emt 0:01:00]} 39. Rxb8 {[%emt 0:03:18]} (39. f3 $5 {[%cal Rc1c5]}) 39... Rxb8 {[%emt 0:00:08]} 40. Qc3 {[%emt 0:00:02]} Kb7 {[%emt 0:00:51][%cal Oh4h3] [#]} 41. Rb1+ {[%emt 0:00:54]} (41. f3 $1 $16) 41... Ka8 $11 {[%emt 0:00:21]} 42. Rxb8+ {[%emt 0:00:31] Black escapes into a draw.  Weighted Error Value: White=0.19 (very precise) /Black=0.22 (precise)} 1/2-1/2

[Event "15th Tashkent Open Agzamov 2022"]
[Site "Tashkent"]
[Date "2022.05.07"]
[Round "6.9"]
[White "Bernadskiy, Vitaliy"]
[Black "Begmuratov, Khumoyun"]
[Result "1-0"]
[ECO "E70"]
[WhiteElo "2636"]
[BlackElo "2384"]
[Annotator "TA"]
[PlyCount "69"]
[EventDate "2022.05.05"]
[EventType "swiss"]
[EventCountry "UZB"]
[SourceTitle "playchess.com"]
[Source "ChessBase"]
[SourceQuality "1"]
[TimeControl "5400+30"]

{[%evp 9,69,40,41,21,19,15,20,10,13,0,33,36,37,27,35,31,34,28,33,23,34,29,32,20,20,9,25,17,181,157,182,160,854,144,343,338,323,327,442,445,426,366,504,488,404,359,618,289,281,272,1068,1067,917,913,1328,1317,1419,1418,29992,29993,29993,29985]} 1. d4 {[%emt 0:04:19]} Nf6 {[%emt 0:00:40]} 2. c4 {[%emt 0:00:05]} g6 {[%emt 0:00:38]} 3. Nc3 {[%emt 0:00:16]} Bg7 {[%emt 0:00:31]} 4. e4 {[%emt 0:02:01]} O-O {[%emt 0:00:42]} 5. Nge2 {[%emt 0:00:43]} d6 {[%emt 0:01:04]} 6. h4 {[%emt 0:01:59] E70: King's Indian: Miscellaneous lines with 4 e4, including 5 Nge2 and 5 Bd3 0-0 6 Nge2.} c5 {[%emt 0:04:10]} 7. d5 {[%emt 0:00:55]} e6 {[%emt 0:03:15]} 8. Ng3 {[%emt 0:01:17] The position is equal.} exd5 {[%emt 0:01:10]} 9. exd5 {[%emt 0:00:12]} h5 {[%emt 0:14:12]} 10. Be2 {[%emt 0:01:48] Active counter play!} a6 {[%emt 0:05:57]} 11. Bg5 {[%emt 0:01:24]} Nbd7 {[%emt 0:04:32]} 12. Qd2 {[%emt 0:01:50]} Qc7 {[%emt 0:04:02] [#]} 13. O-O $146 {[%emt 0:05:32]} ({Predecessor:} 13. Bh6 Ne5 14. Bxg7 Kxg7 15. Qg5 Nh7 16. Qd2 f5 17. f4 Ng4 18. Bxg4 fxg4 19. O-O-O Bf5 20. Rhe1 Rae8 21. Rxe8 Rxe8 22. Re1 Qf7 23. Re3 {½-½ (23) Knights,A-Tucker,D London 1995}) 13... Nh7 $1 {[%emt 0:08:22]} 14. Bh6 $36 {[%emt 0:00:53][%mdl 2048] White is pushing.} f5 $1 {[%emt 0:10:24]} 15. Bxg7 {[%emt 0:10:31]} Kxg7 {[%emt 0:00:01]} 16. Rfe1 {[%emt 0:00:16][%cal Oe2h5]} Ne5 {[%emt 0:02:51]} 17. f4 {[%emt 0:01:34]} Nf7 {[%emt 0:00:31]} 18. Bxh5 {[%emt 0:09:10] Strongly threatening Bf3.} gxh5 {[%emt 0:02:58] [#]} (18... Qd8 $1 $11 {and Black has nothing to worry.}) 19. Re6 $1 $18 {[%emt 0:02:24][%mdl 512]} Kh8 {[%emt 0:18:06] Threatens to win with ...Qd8.} 20. Nxh5 {[%emt 0:08:22]} Qd8 $2 {[%emt 0:05:29] [#]} (20... Bxe6 $16 21. dxe6 Qa5) 21. Qe1 $2 {[%emt 0:03:23]} (21. Ne4 $1 $18 {[%mdl 512] is the precise move to win. And now Qc3+ would win.} Bxe6 22. Qc3+ Ne5 23. fxe5 fxe4 24. exd6+ Rf6 25. Rf1) 21... Bxe6 $2 {[%emt 0:05:15] A mistake that costs the game.} (21... b5 $16) 22. dxe6 {[%emt 0:00:11] aiming for Nd5.} Qe8 {[%emt 0:00:54] White must now prevent ...Nh6.} 23. Nd5 {[%emt 0:02:20]} Ne5 {[%emt 0:00:21]} 24. fxe5 {[%emt 0:00:19]} Qxh5 {[%emt 0:00:09]} 25. exd6 {[%emt 0:00:38]} Rg8 {[%emt 0:03:17][%cal Og8g2]} 26. Qe5+ {[%emt 0:02:14]} Rg7 {[%emt 0:00:01]} 27. Nf4 {[%emt 0:02:34]} Qh6 {[%emt 0:01:54]} (27... Qg4 28. Rf1 Nf8) 28. d7 {[%emt 0:03:56]} (28. Re1 $142) 28... Qf6 {[%emt 0:01:51]} 29. Re1 {[%emt 0:04:31][%cal Ba1e1,Be1e3,Be3g3][%mdl 32] Dancing on a razor blade.} Rd8 $2 {[%emt 0:01:09]} (29... Qxe5 30. Rxe5 Nf8) 30. e7 {[%emt 0:01:39]} Rxe7 {[%emt 0:00:33]} 31. Qxe7 {[%emt 0:00:35]} Qd4+ {[%emt 0:00:30]} 32. Re3 {[%emt 0:00:25]} Qxd7 {[%emt 0:00:30]} 33. Qe5+ {[%emt 0:00:04]} Kg8 {[%emt 0:00:18]} 34. Rg3+ {[%emt 0:00:05]} Kf8 {[%emt 0:00:01]} 35. Qh8+ {[%emt 0:00:08] Weighted Error Value: White=0.52/Black=0.55} 1-0

[Event "15th Tashkent Open Agzamov 2022"]
[Site "Tashkent"]
[Date "2022.05.07"]
[Round "6.10"]
[White "Vokhidov, Shamsiddin"]
[Black "Yakubbaeva, Nilufar"]
[Result "1/2-1/2"]
[ECO "C65"]
[WhiteElo "2536"]
[BlackElo "2327"]
[Annotator "TA"]
[PlyCount "79"]
[EventDate "2022.05.05"]
[EventType "swiss"]
[EventCountry "UZB"]
[SourceTitle "playchess.com"]
[Source "ChessBase"]
[SourceQuality "1"]
[TimeControl "5400+30"]

{[%evp 9,79,8,16,0,0,0,13,0,0,0,0,0,0,11,14,0,0,0,0,-44,0,-12,-12,-10,10,-15,-12,-25,-15,-52,-62,-51,-55,-50,-54,-68,-81,-87,0,0,0,0,6,0,12,0,0,-52,0,0,0,0,0,0,0,0,0,-8,0,0,0,0,0,-63,-61,-65,-58,-62,-72,-78,-57,-37]} 1. e4 {[%emt 0:00:04]} e5 {[%emt 0:00:09]} 2. Nf3 {[%emt 0:00:51]} Nc6 {[%emt 0:00:19]} 3. Bb5 {[%emt 0:04:36]} Nf6 {[%emt 0:00:07]} 4. d3 {[%emt 0:00:23]} Bc5 {[%emt 0:00:06]} 5. Nbd2 {[%emt 0:00:48]} Nd4 {[%emt 0:04:34]} 6. Nxd4 {[%emt 0:00:40] C65: Ruy Lopez: Berlin Defence (3...Nf6), unusual lines and 4 0-0 Bc5.} Bxd4 {[%emt 0:04:18]} 7. c3 {[%emt 0:02:42]} Bb6 {[%emt 0:02:49]} 8. d4 {[%emt 0:00:14] The position is equal.} exd4 {[%emt 0:15:30]} 9. e5 {[%emt 0:01:31]} dxc3 {[%emt 0:12:31]} 10. bxc3 {[%emt 0:01:37]} Qe7 {[%emt 0:00:05] Inhibits Ba3.} 11. O-O $1 {[%emt 0:04:16]} Nd5 {[%emt 0:04:59] [#]} (11... Qxe5 $2 12. Re1 Qxe1+ 13. Qxe1+ Kd8 14. Nc4 $18) 12. Qf3 $146 {[%emt 0:21:27]} ({Predecessor:} 12. Bc4 Nf4 13. a4 O-O 14. a5 Bc5 15. Ne4 Ng6 16. Re1 Qxe5 17. h4 d5 18. Bxd5 {1-0 (37) Hatzl,J (2505)-Tombette,P (2403) ICCF email 2017}) 12... c6 {[%emt 0:01:20]} (12... Qxe5 $2 13. Ba3 Ne3 14. Rae1 $1 $18) 13. Bc4 {[%emt 0:01:38]} O-O $36 {[%emt 0:06:01][%mdl 2048] Black has good play.} (13... Qxe5 $2 14. Ba3 Kd8 15. Rfe1 $18) 14. Re1 {[%emt 0:00:08]} Bc7 {[%emt 0:01:36]} (14... d6 $5 {[%cal Rd6e5]}) 15. Bxd5 {[%emt 0:09:35]} cxd5 {[%emt 0:00:06]} 16. Qxd5 {[%emt 0:00:54]} Qe6 {[%emt 0:02:08]} 17. Qc5 {[%emt 0:04:29]} (17. Qc4 $5 {[%cal Rc4c7]} Ba5 18. Qd3 $11) 17... Qc6 {[%emt 0:08:52]} 18. Ba3 {[%emt 0:00:35][%csl Ga3][%cal Rc5f8]} Re8 {[%emt 0:02:39]} 19. Qd4 {[%emt 0:04:04]} b6 {[%emt 0:03:50]} 20. Nf3 {[%emt 0:01:12]} Bb7 {[%emt 0:00:54]} 21. Rad1 {[%emt 0:03:43]} Rad8 {[%emt 0:02:30]} 22. Bd6 {[%emt 0:05:32]} Bxd6 {[%emt 0:01:39]} 23. exd6 {[%emt 0:00:02] [#]} Re4 {[%emt 0:06:23]} (23... Re6 $1 $17) 24. Rxe4 $11 {[%emt 0:01:07]} Qxe4 {[%emt 0:00:04]} 25. Re1 {[%emt 0:02:04] Against Qe2} Qxd4 {[%emt 0:03:33]} 26. Nxd4 {[%emt 0:00:04][%mdl 4096] Endgame KRB-KRN} Bd5 {[%emt 0:01:23]} 27. f4 {[%emt 0:05:29]} g6 {[%emt 0:00:35]} 28. g4 {[%emt 0:02:02]} ({Better is} 28. a3 $11) 28... Kf8 {[%emt 0:01:26]} (28... Bxa2 $15 29. Ra1 Be6) 29. a3 {[%emt 0:03:09]} Rc8 {[%emt 0:04:11]} 30. Re5 {[%emt 0:03:43]} Bc6 {[%emt 0:03:04]} 31. Re7 {[%emt 0:03:43]} Ba4 {[%emt 0:00:19]} 32. Nf3 {[%emt 0:00:02]} f6 {[%emt 0:02:38] Inhibits Ng5.} 33. Rxh7 {[%emt 0:00:36] Threatens to win with Rh8+.} Rxc3 {[%emt 0:00:57]} 34. Nh4 {[%emt 0:00:02]} g5 {[%emt 0:00:05]} 35. Ng6+ {[%emt 0:04:57]} Kg8 {[%emt 0:00:41]} 36. Re7 {[%emt 0:00:20]} (36. Rh8+ $1 $11 Kg7 37. f5) 36... gxf4 $1 $15 {[%emt 0:00:50]} ({Much weaker is} 36... Rxa3 37. f5 $11) 37. Nxf4 {[%emt 0:01:28] Black must now prevent Nd5.} Rc4 $1 {[%emt 0:00:05]} ({Much less strong is} 37... Rxa3 38. Nd5 $16) 38. Nd5 {[%emt 0:00:17]} Rxg4+ {[%emt 0:01:50]} 39. Kf2 {[%emt 0:00:01]} Kf8 {[%emt 0:00:06] ...Rd4 is the strong threat.} 40. Ke3 {[%emt 0:02:21] Against Rd4.  Weighted Error Value: White=0.13 (very precise) /Black=0.07 (flawless)} 1/2-1/2

[Event "15th Tashkent Open Agzamov 2022"]
[Site "Tashkent"]
[Date "2022.05.08"]
[Round "7.1"]
[White "Indjic, Aleksandar"]
[Black "Asadli, Vugar"]
[Result "1/2-1/2"]
[ECO "D50"]
[WhiteElo "2621"]
[BlackElo "2578"]
[Annotator "TA"]
[PlyCount "69"]
[EventDate "2022.05.05"]
[EventType "swiss"]
[EventCountry "UZB"]
[SourceTitle "playchess.com"]
[Source "ChessBase"]
[SourceQuality "1"]
[TimeControl "5400+30"]

{[%evp 14,69,21,18,18,17,23,18,24,6,8,12,11,10,18,16,18,21,14,18,23,40,15,31,52,40,52,8,8,8,12,12,9,0,5,6,48,27,15,7,7,7,64,34,33,7,7,7,21,0,0,0,0,0,0,0,7,7]} 1. d4 {[%emt 0:00:09]} d5 {[%emt 0:00:38]} 2. c4 {[%emt 0:00:35]} e6 {[%emt 0:00:06]} 3. Nf3 {[%emt 0:00:50]} Nf6 {[%emt 0:00:16]} 4. Nc3 {[%emt 0:00:18]} c5 {[%emt 0:00:59]} 5. cxd5 {[%emt 0:01:13]} cxd4 {[%emt 0:00:17]} 6. Qxd4 {[%emt 0:02:05]} exd5 {[%emt 0:00:32]} 7. Bg5 {[%emt 0:02:30]} Be7 {[%emt 0:00:47]} 8. e3 {[%emt 0:00:10]} O-O {[%emt 0:01:02] D50: Queen's Gambit Declined: Dutch-Peruvian Gambit.} 9. Be2 {[%emt 0:01:18]} Nc6 {[%emt 0:00:48]} 10. Qd3 {[%emt 0:00:07] Nowadays more popular than 10.Qa4.} h6 {[%emt 0:00:13]} 11. Bh4 {[%emt 0:00:33]} Qb6 {[%emt 0:00:41]} 12. O-O {[%emt 0:12:07]} Rd8 {[%emt 0:00:31]} ({But not} 12... Qxb2 13. Rab1 Qa3 14. Bxf6 (14. Nxd5 Nxd5 15. Qxd5 Bxh4 $11) 14... Bxf6 15. Nxd5 Qxd3 16. Nxf6+ (16. Bxd3 Be7 $14) 16... gxf6 17. Bxd3 $14) 13. Rfd1 {[%emt 0:04:55]} Qxb2 {[%emt 0:00:32]} 14. Rab1 {[%emt 0:01:27]} Qa3 {[%emt 0:01:37]} 15. Bxf6 {[%emt 0:06:21]} Bxf6 {[%emt 0:00:05]} 16. Nxd5 {[%emt 0:00:09]} Qxa2 {[%emt 0:00:34][%cal Od8d5]} 17. Nxf6+ {[%emt 0:01:21]} gxf6 {[%emt 0:00:06]} 18. Nd4 {[%emt 0:00:09]} Be6 {[%emt 0:00:14]} 19. Rxb7 {[%emt 0:03:16]} Rd6 {[%emt 0:00:22] [#]} 20. Bf1 $146 {[%emt 0:04:28]} ({Predecessor:} 20. Rd2 Qa1+ 21. Rb1 Qa5 22. Rdd1 Nxd4 23. exd4 Rad8 24. h4 Qf5 25. Qg3+ Qg6 26. Qf4 {0-1 (40) Mamedyarov,S (2762)-So,W (2778) chess24.com INT 2021}) 20... Rad8 {[%emt 0:07:44]} 21. Qc3 {[%emt 0:02:04] [#] Hoping for Ra1.} Nxd4 {[%emt 0:16:29]} 22. exd4 {[%emt 0:00:35]} Qa4 {[%emt 0:01:03][%csl LRd1,LRd4]} 23. Qg3+ {[%emt 0:03:30]} Kf8 {[%emt 0:05:15] [#]} 24. Rb8 $1 {[%emt 0:01:24] Intending Qxd6+ and mate.} Qd7 {[%emt 0:02:17]} (24... Rd5 $5 {[%cal Ra4d1]} 25. Rxd8+ Rxd8 $14) 25. Rdb1 {[%emt 0:02:58]} Rb6 $1 {[%emt 0:01:12]} 26. Rxd8+ {[%emt 0:13:22]} Qxd8 {[%emt 0:00:13]} 27. Rd1 {[%emt 0:00:22][%cal Od4d5] Threatening d5!} Rd6 {[%emt 0:04:58]} (27... Qd6 $11) 28. Qf4 {[%emt 0:00:29]} Kg7 {[%emt 0:02:22]} 29. Rd3 {[%emt 0:00:58]} Rd5 {[%emt 0:00:11] The position is equal.} 30. h4 {[%emt 0:02:49] Strongly threatening Rg3+.} f5 {[%emt 0:05:02]} 31. g3 {[%emt 0:03:22]} (31. Rd1 $5 {[%cal Rf1c4]}) 31... Qb6 {[%emt 0:04:12]} 32. Rd1 {[%emt 0:00:38][%cal Bd3d1,Bd1a1,Ba1a7][%mdl 32]} Qb3 {[%emt 0:02:22] Against Bc4} 33. Ra1 {[%emt 0:01:36]} Qb4 {[%emt 0:01:39]} 34. Rxa7 {[%emt 0:04:37] Black must now prevent Bg2.} Qxd4 {[%emt 0:00:21]} 35. Qxd4+ {[%emt 0:00:07] Weighted Error Value: White=0.07 (flawless) /Black=0.07 (flawless)} 1/2-1/2